[Event "Oslo Chess Festival 2017"]
[Site "Oslo"]
[Date "2017.09.29"]
[Round "1"]
[White "Vogt, Lothar"]
[Black "Aure, Anders Nilsson"]
[Result "1-0"]
[ECO "B70"]
[WhiteElo "2401"]
[BlackElo "1803"]
[Annotator "ChessBase"]
[PlyCount "95"]
[EventDate "2017.??.??"]
[EventType "swiss"]
[EventCountry "NOR"]
[SourceTitle "playchess.com"]
[Source "ChessBase"]
[SourceQuality "1"]
[TimeControl "5400+30"]

1. e4 {[%emt 0:00:03]} c5 {[%emt 0:00:06]} 2. Nf3 {[%emt 0:00:06]} d6 {[%emt 0:00:06]} 3. d4 {[%emt 0:00:24]} Nf6 {[%emt 0:00:07]} 4. Nc3 {[%emt 0:00:08]} cxd4 {[%emt 0:00:05]} 5. Nxd4 {[%emt 0:00:06]} g6 {[%emt 0:00:08]} 6. Be2 {[%emt 0:01:54]} Bg7 {[%emt 0:00:25]} 7. O-O {[%emt 0:00:05]} O-O {[%emt 0:00:20]} 8. Re1 {[%emt 0:00:49]} Nc6 {[%emt 0:02:01]} 9. Nb3 {[%emt 0:00:04]} Be6 {[%emt 0:06:59]} 10. Bf1 {[%emt 0:04:12]} Rc8 {[%emt 0:11:48]} 11. Nd5 {[%emt 0:02:14]} Bxd5 {[%emt 0:05:01]} 12. exd5 {[%emt 0:00:12]} Ne5 {[%emt 0:00:15]} 13. Be3 {[%emt 0:04:01]} a6 {[%emt 0:07:54]} 14. c3 {[%emt 0:05:00]} Re8 {[%emt 0:04:29]} 15. a4 {[%emt 0:04:59]} Nc4 {[%emt 0:04:00]} 16. Bxc4 {[%emt 0:01:08]} Rxc4 {[%emt 0:00:05]} 17. Qd3 {[%emt 0:04:28]} Rc8 {[%emt 0:00:51]} 18. Bd4 {[%emt 0:02:55]} Nd7 {[%emt 0:05:58]} 19. Bxg7 {[%emt 0:08:27]} Kxg7 {[%emt 0:00:44]} 20. Re4 {[%emt 0:01:44]} Ne5 {[%emt 0:09:49]} 21. Qe2 {[%emt 0:02:43]} Qb6 {[%emt 0:03:43]} 22. Rb4 {[%emt 0:01:57]} Qc7 {[%emt 0:01:20]} 23. Nd2 {[%emt 0:04:31]} Rb8 {[%emt 0:04:55]} 24. h3 {[%emt 0:06:27]} Qc5 {[%emt 0:02:49]} 25. Qe4 {[%emt 0:02:43]} f5 {[%emt 0:05:03]} 26. Qd4 {[%emt 0:00:04]} Qxd4 {[%emt 0:00:07]} 27. Rxd4 {[%emt 0:00:26]} b5 {[%emt 0:01:46]} 28. axb5 {[%emt 0:03:46]} axb5 {[%emt 0:00:15]} 29. b3 {[%emt 0:06:59]} Rec8 {[%emt 0:03:50]} 30. f4 {[%emt 0:00:55]} Nf7 {[%emt 0:00:47]} 31. Rd3 {[%emt 0:02:05]} Ra8 {[%emt 0:01:01]} 32. Re1 {[%emt 0:01:59]} Ra7 {[%emt 0:02:03]} 33. Nf3 {[%emt 0:01:13]} Rac7 {[%emt 0:03:26]} 34. Ree3 {[%emt 0:00:37]} Rb8 {[%emt 0:03:59]} 35. Nd4 {[%emt 0:01:34]} Nd8 {[%emt 0:00:05]} 36. Kf2 {[%emt 0:05:33]} Kf7 {[%emt 0:01:40]} 37. g4 {[%emt 0:00:49]} Ra7 {[%emt 0:01:16]} 38. gxf5 {[%emt 0:00:54]} Ra2+ {[%emt 0:00:19]} 39. Re2 {[%emt 0:01:25]} Rxe2+ {[%emt 0:00:36]} 40. Kxe2 {[%emt 0:00:07]} gxf5 {[%emt 0:01:51]} 41. Nxf5 {[%emt 0:00:10]} Kf6 {[%emt 0:00:40]} 42. Nd4 {[%emt 0:00:47]} Nb7 {[%emt 0:03:20]} 43. b4 {[%emt 0:00:23]} Nd8 {[%emt 0:00:20]} 44. Re3 {[%emt 0:03:53]} Rb7 {[%emt 0:00:25]} 45. Kd3 {[%emt 0:00:35]} Kf7 {[%emt 0:01:21]} 46. Re2 {[%emt 0:00:47]} Kg6 {[%emt 0:02:13]} 47. Ra2 {[%emt 0:01:22]} Nf7 {[%emt 0:02:26]} 48. Ra5 {[%emt 0:00:24]} 1-0

[Event "Oslo Chess Festival 2017"]
[Site "Oslo"]
[Date "2017.09.29"]
[Round "1"]
[White "Haug, Johannes"]
[Black "Sidali, Elias Hulleberg"]
[Result "1-0"]
[ECO "E16"]
[WhiteElo "2379"]
[BlackElo "1763"]
[Annotator "NA"]
[PlyCount "52"]
[EventDate "2017.??.??"]
[EventType "swiss"]
[EventCountry "NOR"]
[SourceTitle "playchess.com"]
[Source "ChessBase"]
[SourceQuality "1"]
[TimeControl "5400+30"]

1. d4 {[%emt 0:00:02]} Nf6 {[%emt 0:00:21]} 2. c4 {[%emt 0:02:03]} e6 {[%emt 0:00:11]} 3. Nf3 {[%emt 0:00:08]} b6 {[%emt 0:00:06]} 4. g3 {[%emt 0:00:21]} Bb7 {[%emt 0:00:09]} 5. Bg2 {[%emt 0:00:12]} Bb4+ {[%emt 0:00:10]} 6. Bd2 {[%emt 0:00:26]} Bxd2+ {[%emt 0:01:10]} 7. Qxd2 {[%emt 0:02:52]} O-O {[%emt 0:00:28]} 8. O-O {[%emt 0:01:03]} d6 {[%emt 0:00:50]} 9. Qc2 {[%emt 0:03:27]} Nbd7 {[%emt 0:02:22]} 10. Nc3 {[%emt 0:00:29]} e5 {[%emt 0:00:33]} 11. e4 {[%emt 0:03:29]} Re8 {[%emt 0:02:04]} 12. Rfe1 {[%emt 0:01:11]} Qe7 {[%emt 0:03:21]} 13. Nd5 {[%emt 0:02:48]} Qd8 {[%emt 0:00:31]} 14. Rad1 {[%emt 0:04:15]} exd4 {[%emt 0:01:36]} 15. Nxd4 {[%emt 0:00:11]} Nxd5 {[%emt 0:01:06]} 16. cxd5 {[%emt 0:01:21]} a5 {[%emt 0:00:30]} 17. b3 {[%emt 0:02:58]} Nc5 {[%emt 0:00:16]} 18. a3 {[%emt 0:01:24]} Qd7 {[%emt 0:15:08]} 19. b4 {[%emt 0:04:12]} axb4 {[%emt 0:00:29]} 20. axb4 {[%emt 0:00:07]} Na4 {[%emt 0:00:16]} 21. Rc1 {[%emt 0:08:09]} Rec8 {[%emt 0:01:02]} 22. h4 {[%emt 0:01:07]} b5 {[%emt 0:00:45]} 23. Kh2 {[%emt 0:01:23]} Nb6 {[%emt 0:02:25]} 24. Bh3 {[%emt 0:01:26]} Qe8 {[%emt 0:00:31]} 25. Bxc8 {[%emt 0:00:59]} Rxc8 {[%emt 0:01:09]} 26. Qe2 {[%emt 0:01:27]} Nc4 {[%emt 0:00:04]} 1-0

[Event "Oslo Chess Festival 2017"]
[Site "Oslo"]
[Date "2017.09.29"]
[Round "1"]
[White "Devereaux, Maxim L"]
[Black "Ali, Karim"]
[Result "1-0"]
[ECO "A18"]
[WhiteElo "2357"]
[BlackElo "1755"]
[Annotator "NA"]
[PlyCount "53"]
[EventDate "2017.??.??"]
[EventType "swiss"]
[EventCountry "NOR"]
[SourceTitle "playchess.com"]
[Source "ChessBase"]
[SourceQuality "1"]
[TimeControl "5400+30"]

1. c4 {[%emt 0:00:12]} Nf6 {[%emt 0:00:10]} 2. Nc3 {[%emt 0:00:10]} e6 {[%emt 0:00:08]} 3. e4 {[%emt 0:01:08]} d5 {[%emt 0:02:48]} 4. e5 {[%emt 0:02:27]} Ng8 {[%emt 0:00:19]} 5. d4 {[%emt 0:01:48]} c6 {[%emt 0:05:36]} 6. Nf3 {[%emt 0:02:11]} Nd7 {[%emt 0:01:03]} 7. cxd5 {[%emt 0:03:37]} exd5 {[%emt 0:01:23]} 8. Bd3 {[%emt 0:00:30]} Be7 {[%emt 0:00:36]} 9. O-O {[%emt 0:00:50]} Nf8 {[%emt 0:00:15]} 10. h3 {[%emt 0:05:45]} Nh6 {[%emt 0:01:40]} 11. Qc2 {[%emt 0:00:40]} Qd7 {[%emt 0:05:38]} 12. Bg5 {[%emt 0:05:45]} Bxg5 {[%emt 0:03:45]} 13. Nxg5 {[%emt 0:02:08]} Nf5 {[%emt 0:00:17]} 14. e6 {[%emt 0:04:06]} fxe6 {[%emt 0:00:26]} 15. Bxf5 {[%emt 0:00:36]} exf5 {[%emt 0:00:20]} 16. Rfe1+ {[%emt 0:04:00]} Kd8 {[%emt 0:01:11]} 17. Re2 {[%emt 0:03:59]} h6 {[%emt 0:00:29]} 18. Nf3 {[%emt 0:00:05]} Ng6 {[%emt 0:03:05]} 19. Rae1 {[%emt 0:00:49]} Qf7 {[%emt 0:02:51]} 20. Ne5 {[%emt 0:05:13]} Nxe5 {[%emt 0:03:30]} 21. Rxe5 {[%emt 0:00:06]} Bd7 {[%emt 0:01:11]} 22. Qb3 {[%emt 0:04:21]} Rb8 {[%emt 0:05:30]} 23. Qa3 {[%emt 0:00:51]} Kc7 {[%emt 0:12:52]} 24. Re7 {[%emt 0:01:19]} Qf6 {[%emt 0:02:07]} 25. Qa5+ {[%emt 0:02:00]} Kc8 {[%emt 0:04:34]} 26. Nb5 {[%emt 0:05:16]} b6 {[%emt 0:16:08]} 27. Qa6+ {[%emt 0:00:22]} 1-0

[Event "Oslo Chess Festival 2017"]
[Site "Oslo"]
[Date "2017.09.29"]
[Round "1"]
[White "Chu, Wei Chao"]
[Black "Roque Sola, Maria Fernanda"]
[Result "1-0"]
[ECO "B31"]
[WhiteElo "2340"]
[BlackElo "1746"]
[Annotator "ChessBase"]
[PlyCount "69"]
[EventDate "2017.??.??"]
[EventType "swiss"]
[EventCountry "NOR"]
[SourceTitle "playchess.com"]
[Source "ChessBase"]
[SourceQuality "1"]
[TimeControl "5400+30"]

1. Nf3 {[%emt 0:00:05]} c5 {[%emt 0:00:15]} 2. e4 {[%emt 0:00:16]} Nc6 {[%emt 0:00:18]} 3. Bb5 {[%emt 0:00:08]} g6 {[%emt 0:00:33]} 4. O-O {[%emt 0:00:13]} Bg7 {[%emt 0:01:01]} 5. Re1 {[%emt 0:00:07]} e5 {[%emt 0:03:37]} 6. Bxc6 {[%emt 0:00:16]} bxc6 {[%emt 0:00:10]} 7. d3 {[%emt 0:03:05]} Qb6 {[%emt 0:11:10]} 8. Na3 {[%emt 0:02:10]} Ne7 {[%emt 0:07:59]} 9. Nc4 {[%emt 0:01:44]} Qc7 {[%emt 0:04:39]} 10. Be3 {[%emt 0:01:15]} d6 {[%emt 0:04:31]} 11. a3 {[%emt 0:00:33]} a5 {[%emt 0:06:49]} 12. Qd2 {[%emt 0:00:59]} O-O {[%emt 0:03:03]} 13. b4 {[%emt 0:00:50]} axb4 {[%emt 0:10:22]} 14. axb4 {[%emt 0:00:13]} Rxa1 {[%emt 0:12:07]} 15. Rxa1 {[%emt 0:00:25]} d5 {[%emt 0:01:21]} 16. Na5 {[%emt 0:00:10]} d4 {[%emt 0:03:49]} 17. Bh6 {[%emt 0:03:00]} cxb4 {[%emt 0:01:11]} 18. Bxg7 {[%emt 0:00:28]} Kxg7 {[%emt 0:00:03]} 19. Qxb4 {[%emt 0:00:06]} c5 {[%emt 0:02:00]} 20. Qa3 {[%emt 0:00:52]} Bg4 {[%emt 0:00:47]} 21. Nd2 {[%emt 0:00:31]} Ra8 {[%emt 0:00:48]} 22. Ndb3 {[%emt 0:00:05]} Rc8 {[%emt 0:10:10]} 23. Nc4 {[%emt 0:00:40]} Be6 {[%emt 0:01:37]} 24. Qa6 {[%emt 0:00:34]} Rb8 {[%emt 0:03:42]} 25. h3 {[%emt 0:02:53]} Rb4 {[%emt 0:02:54]} 26. Nba5 {[%emt 0:05:26]} Bxc4 {[%emt 0:02:45]} 27. Nxc4 {[%emt 0:00:06]} Nc8 {[%emt 0:00:29]} 28. Qa5 {[%emt 0:05:16]} Nb6 {[%emt 0:02:01]} 29. g3 {[%emt 0:01:23]} h6 {[%emt 0:01:28]} 30. Kg2 {[%emt 0:00:09]} h5 {[%emt 0:01:51]} 31. h4 {[%emt 0:00:12]} Kg8 {[%emt 0:00:57]} 32. Nd2 {[%emt 0:01:24]} Rb2 {[%emt 0:01:13]} 33. Nf3 {[%emt 0:00:23]} Rxc2 {[%emt 0:01:02]} 34. Rb1 {[%emt 0:00:06]} Nd5 {[%emt 0:00:32]} 35. Qa8+ {[%emt 0:00:06]} 1-0

[Event "Oslo Chess Festival 2017"]
[Site "Oslo"]
[Date "2017.09.29"]
[Round "1"]
[White "Mikalsen, Erlend"]
[Black "Schouten, Mathias Lind"]
[Result "1-0"]
[ECO "C63"]
[WhiteElo "2322"]
[BlackElo "1718"]
[Annotator "NA"]
[PlyCount "71"]
[EventDate "2017.??.??"]
[EventType "swiss"]
[EventCountry "NOR"]
[SourceTitle "playchess.com"]
[Source "ChessBase"]
[SourceQuality "1"]
[TimeControl "5400+30"]

1. e4 {[%emt 0:00:02]} e5 {[%emt 0:00:25]} 2. Nf3 {[%emt 0:00:06]} Nc6 {[%emt 0:00:11]} 3. Bb5 {[%emt 0:00:05]} f5 {[%emt 0:00:28]} 4. Nc3 {[%emt 0:02:14]} fxe4 {[%emt 0:06:44]} 5. Nxe4 {[%emt 0:00:15]} Nf6 {[%emt 0:00:09]} 6. Nxf6+ {[%emt 0:00:51]} Qxf6 {[%emt 0:00:48]} 7. O-O {[%emt 0:00:48]} d6 {[%emt 0:01:45]} 8. d4 {[%emt 0:01:20]} Bd7 {[%emt 0:16:03]} 9. Re1 {[%emt 0:01:23]} Be7 {[%emt 0:12:30]} 10. Bg5 {[%emt 0:00:56]} Qf5 {[%emt 0:03:45]} 11. Bxe7 {[%emt 0:00:34]} e4 {[%emt 0:09:12]} 12. Bxc6 {[%emt 0:01:28]} bxc6 {[%emt 0:03:19]} 13. Bh4 {[%emt 0:00:24]} d5 {[%emt 0:00:46]} 14. Ne5 {[%emt 0:01:05]} O-O {[%emt 0:01:15]} 15. Nxd7 {[%emt 0:00:13]} Qxd7 {[%emt 0:00:09]} 16. Bg3 {[%emt 0:00:08]} Rab8 {[%emt 0:00:15]} 17. b3 {[%emt 0:00:04]} Rf7 {[%emt 0:00:36]} 18. Rc1 {[%emt 0:00:47]} Rf6 {[%emt 0:01:09]} 19. c4 {[%emt 0:00:07]} Rc8 {[%emt 0:00:14]} 20. Qd2 {[%emt 0:00:46]} a6 {[%emt 0:00:58]} 21. Qa5 {[%emt 0:00:27]} dxc4 {[%emt 0:01:27]} 22. Rxc4 {[%emt 0:00:03]} Qd5 {[%emt 0:00:13]} 23. Qxa6 {[%emt 0:01:43]} Rcf8 {[%emt 0:00:35]} 24. Qa7 {[%emt 0:00:20]} Qf5 {[%emt 0:00:32]} 25. Rcc1 {[%emt 0:00:43]} e3 {[%emt 0:00:39]} 26. Rxe3 {[%emt 0:00:56]} Qg5 {[%emt 0:00:27]} 27. Rce1 {[%emt 0:00:43]} h5 {[%emt 0:00:42]} 28. h4 {[%emt 0:00:05]} Qg4 {[%emt 0:00:29]} 29. Qxc7 {[%emt 0:00:24]} Rg6 {[%emt 0:00:29]} 30. Re4 {[%emt 0:00:31]} Qf5 {[%emt 0:00:39]} 31. Rf4 {[%emt 0:00:06]} Qd5 {[%emt 0:02:22]} 32. Rxf8+ {[%emt 0:00:07]} Kxf8 {[%emt 0:00:15]} 33. Qc8+ {[%emt 0:00:04]} Kf7 {[%emt 0:00:15]} 34. Qe8+ {[%emt 0:00:03]} Kf6 {[%emt 0:00:13]} 35. Qe7+ {[%emt 0:01:19]} Kf5 {[%emt 0:00:06]} 36. Qf8+ {[%emt 0:00:10]} 1-0

[Event "Oslo Chess Festival 2017"]
[Site "Oslo"]
[Date "2017.09.29"]
[Round "1"]
[White "Jarve, Edvin"]
[Black "Pigott, John C"]
[Result "0-1"]
[ECO "D91"]
[WhiteElo "1805"]
[BlackElo "2408"]
[Annotator "RC"]
[PlyCount "70"]
[EventDate "2017.??.??"]
[EventType "swiss"]
[EventCountry "NOR"]
[SourceTitle "playchess.com"]
[Source "ChessBase"]
[SourceQuality "1"]
[TimeControl "5400+30"]

1. d4 {[%emt 0:00:04]} Nf6 {[%emt 0:00:10]} 2. c4 {[%emt 0:00:18]} g6 {[%emt 0:00:09]} 3. Nc3 {[%emt 0:00:24]} d5 {[%emt 0:00:09]} 4. Nf3 {[%emt 0:00:42]} Bg7 {[%emt 0:00:07]} 5. Bg5 {[%emt 0:01:10]} Ne4 {[%emt 0:00:24]} 6. Bh4 {[%emt 0:00:31]} Nxc3 {[%emt 0:00:22]} 7. bxc3 {[%emt 0:00:02]} dxc4 {[%emt 0:00:08]} 8. Qa4+ {[%emt 0:00:41]} Nd7 {[%emt 0:08:00]} 9. Qxc4 {[%emt 0:03:50]} c5 {[%emt 0:02:42]} 10. e3 {[%emt 0:02:47]} cxd4 {[%emt 0:09:44]} 11. cxd4 {[%emt 0:06:57]} Qa5+ {[%emt 0:05:33]} 12. Nd2 {[%emt 0:01:35]} e5 {[%emt 0:05:09]} 13. Rc1 {[%emt 0:12:10]} O-O {[%emt 0:01:08]} 14. Be7 {[%emt 0:16:00]} Re8 {[%emt 0:08:53]} 15. Bb4 {[%emt 0:00:37]} Qd8 {[%emt 0:01:10]} 16. dxe5 {[%emt 0:18:35]} Nxe5 {[%emt 0:00:42]} 17. Qc7 {[%emt 0:05:38]} Qh4 {[%emt 0:07:48]} 18. Bb5 {[%emt 0:09:56]} Qxb4 {[%emt 0:22:02]} 19. Bxe8 {[%emt 0:00:20]} Nd3+ {[%emt 0:00:19]} 20. Ke2 {[%emt 0:00:19]} Nxc1+ {[%emt 0:00:15]} 21. Rxc1 {[%emt 0:00:18]} Be6 {[%emt 0:08:26]} 22. Bd7 {[%emt 0:01:20]} Qg4+ {[%emt 0:00:09]} 23. f3 {[%emt 0:00:50]} Qxg2+ {[%emt 0:00:05]} 24. Kd3 {[%emt 0:00:45]} Bxd7 {[%emt 0:04:44]} 25. Qxd7 {[%emt 0:00:01]} Qxh2 {[%emt 0:00:57]} 26. Rc7 {[%emt 0:01:49]} Rf8 {[%emt 0:00:27]} 27. Rxb7 {[%emt 0:01:06]} a5 {[%emt 0:00:05]} 28. a4 {[%emt 0:04:12]} Qh4 {[%emt 0:01:40]} 29. Ke2 {[%emt 0:00:54]} h5 {[%emt 0:00:24]} 30. Qc7 {[%emt 0:03:10]} Qxa4 {[%emt 0:01:37]} 31. Ra7 {[%emt 0:00:31]} Qb5+ {[%emt 0:00:14]} 32. Kf2 {[%emt 0:00:46]} Qb2 {[%emt 0:01:25]} 33. Ke2 {[%emt 0:02:36]} Bc3 {[%emt 0:01:50]} 34. Qd7 {[%emt 0:00:25]} a4 {[%emt 0:01:06]} 35. Rb7 {[%emt 0:01:41]} Qxd2+ {[%emt 0:00:40]} 0-1

[Event "Oslo Chess Festival 2017"]
[Site "Oslo"]
[Date "2017.09.29"]
[Round "1"]
[White "Wright, Haakon"]
[Black "Stark, Lars"]
[Result "0-1"]
[ECO "D00"]
[WhiteElo "1795"]
[BlackElo "2397"]
[Annotator "NA"]
[PlyCount "56"]
[EventDate "2017.??.??"]
[EventType "swiss"]
[EventCountry "NOR"]
[SourceTitle "playchess.com"]
[Source "ChessBase"]
[SourceQuality "1"]
[TimeControl "5400+30"]

1. d4 {[%emt 0:11:06]} Nf6 {[%emt 0:00:12]} 2. Bf4 {[%emt 0:00:05]} e6 {[%emt 0:00:33]} 3. e3 {[%emt 0:00:08]} c5 {[%emt 0:00:18]} 4. c3 {[%emt 0:00:48]} Nc6 {[%emt 0:00:11]} 5. Nd2 {[%emt 0:00:26]} d5 {[%emt 0:00:47]} 6. Bd3 {[%emt 0:00:43]} Bd6 {[%emt 0:07:47]} 7. Bg3 {[%emt 0:00:08]} e5 {[%emt 0:01:32]} 8. dxe5 {[%emt 0:08:41]} Nxe5 {[%emt 0:00:30]} 9. Bb5+ {[%emt 0:01:25]} Bd7 {[%emt 0:01:56]} 10. Bxd7+ {[%emt 0:02:06]} Qxd7 {[%emt 0:00:07]} 11. Ndf3 {[%emt 0:05:20]} Nc4 {[%emt 0:02:41]} 12. Bxd6 {[%emt 0:10:22]} Qxd6 {[%emt 0:00:27]} 13. Qa4+ {[%emt 0:06:55]} Ke7 {[%emt 0:02:29]} 14. b3 {[%emt 0:11:32]} Ne5 {[%emt 0:09:10]} 15. Nxe5 {[%emt 0:10:54]} Qxe5 {[%emt 0:00:23]} 16. Ne2 {[%emt 0:06:47]} Rhd8 {[%emt 0:12:45]} 17. Qb5 {[%emt 0:06:35]} b6 {[%emt 0:01:03]} 18. O-O {[%emt 0:04:37]} Ng4 {[%emt 0:03:49]} 19. g3 {[%emt 0:03:17]} Rd6 {[%emt 0:07:11]} 20. Qa4 {[%emt 0:02:49]} Qh5 {[%emt 0:02:48]} 21. h4 {[%emt 0:00:52]} Ne5 {[%emt 0:00:46]} 22. Nf4 {[%emt 0:03:04]} Qf3 {[%emt 0:01:03]} 23. Qb5 {[%emt 0:02:43]} Rf6 {[%emt 0:04:21]} 24. Rad1 {[%emt 0:03:23]} Rd8 {[%emt 0:00:15]} 25. e4 {[%emt 0:02:54]} Rxf4 {[%emt 0:00:38]} 26. exd5 {[%emt 0:02:11]} Rxh4 {[%emt 0:00:21]} 27. d6+ {[%emt 0:00:51]} Rxd6 {[%emt 0:00:24]} 28. gxh4 {[%emt 0:01:33]} Rg6+ {[%emt 0:00:09] 0} 0-1

[Event "Oslo Chess Festival 2017"]
[Site "Oslo"]
[Date "2017.09.29"]
[Round "1"]
[White "Markussen, Petter B"]
[Black "Ernst, Thomas"]
[Result "0-1"]
[ECO "A21"]
[WhiteElo "1756"]
[BlackElo "2371"]
[Annotator "NA"]
[PlyCount "44"]
[EventDate "2017.??.??"]
[EventType "swiss"]
[EventCountry "NOR"]
[SourceTitle "playchess.com"]
[Source "ChessBase"]
[SourceQuality "1"]
[TimeControl "5400+30"]

1. c4 {[%emt 0:00:02]} e5 {[%emt 0:00:21]} 2. Nc3 {[%emt 0:00:10]} d6 {[%emt 0:00:12]} 3. Nf3 {[%emt 0:00:51]} f5 {[%emt 0:00:15]} 4. d4 {[%emt 0:00:04]} e4 {[%emt 0:00:09]} 5. Ng5 {[%emt 0:02:58]} Nf6 {[%emt 0:05:04]} 6. Nh3 {[%emt 0:00:41]} c6 {[%emt 0:12:35]} 7. Bg5 {[%emt 0:07:48]} h6 {[%emt 0:00:38]} 8. Bxf6 {[%emt 0:01:20]} Qxf6 {[%emt 0:00:06]} 9. e3 {[%emt 0:00:39]} Na6 {[%emt 0:07:11]} 10. Be2 {[%emt 0:17:18]} g6 {[%emt 0:03:15]} 11. Nf4 {[%emt 0:02:54]} h5 {[%emt 0:00:13]} 12. h4 {[%emt 0:04:10]} Nc7 {[%emt 0:00:42]} 13. f3 {[%emt 0:05:16]} exf3 {[%emt 0:04:34]} 14. Bxf3 {[%emt 0:01:27]} Ne6 {[%emt 0:02:40]} 15. Qa4 {[%emt 0:06:58]} Nxf4 {[%emt 0:03:32]} 16. Bxc6+ {[%emt 0:03:30]} Kf7 {[%emt 0:04:14]} 17. exf4 {[%emt 0:01:08]} bxc6 {[%emt 0:04:18]} 18. Qxc6 {[%emt 0:00:51]} Qe7+ {[%emt 0:00:20]} 19. Kf2 {[%emt 0:01:28]} Rb8 {[%emt 0:07:26]} 20. Rae1 {[%emt 0:00:21]} Rxb2+ {[%emt 0:01:04]} 21. Kg3 {[%emt 0:00:09]} Qd7 {[%emt 0:01:42]} 22. Qd5+ {[%emt 0:01:35]} Kg7 {[%emt 0:00:29]} 0-1

[Event "Oslo Chess Festival 2017"]
[Site "Oslo"]
[Date "2017.09.29"]
[Round "1"]
[White "Mikelsen, Mattis"]
[Black "Maksimovic, Branimir"]
[Result "0-1"]
[ECO "B22"]
[WhiteElo "1754"]
[BlackElo "2343"]
[Annotator "NA"]
[PlyCount "54"]
[EventDate "2017.??.??"]
[EventType "swiss"]
[EventCountry "NOR"]
[SourceTitle "playchess.com"]
[Source "ChessBase"]
[SourceQuality "1"]
[TimeControl "5400+30"]

1. e4 {[%emt 0:00:02]} c5 {[%emt 0:00:06]} 2. d4 {[%emt 0:00:14]} cxd4 {[%emt 0:00:07]} 3. c3 {[%emt 0:00:05]} d5 {[%emt 0:00:47]} 4. exd5 {[%emt 0:03:00]} Qxd5 {[%emt 0:00:06]} 5. cxd4 {[%emt 0:00:15]} Nc6 {[%emt 0:01:48]} 6. Nf3 {[%emt 0:00:11]} e5 {[%emt 0:08:18]} 7. Nc3 {[%emt 0:08:34]} Bb4 {[%emt 0:00:07]} 8. dxe5 {[%emt 0:00:54]} Qxd1+ {[%emt 0:00:48]} 9. Kxd1 {[%emt 0:00:06]} Nge7 {[%emt 0:04:20]} 10. Bf4 {[%emt 0:04:20]} Ng6 {[%emt 0:01:12]} 11. Bg3 {[%emt 0:01:10]} Bg4 {[%emt 0:02:01]} 12. Kc2 {[%emt 0:11:18]} O-O {[%emt 0:02:54]} 13. Re1 {[%emt 0:06:07]} Rac8 {[%emt 0:03:42]} 14. Bd3 {[%emt 0:10:27]} Bxf3 {[%emt 0:05:33]} 15. gxf3 {[%emt 0:00:08]} Nd4+ {[%emt 0:00:06]} 16. Kb1 {[%emt 0:00:12]} Bxc3 {[%emt 0:00:48]} 17. bxc3 {[%emt 0:01:15]} Rxc3 {[%emt 0:00:24]} 18. Re3 {[%emt 0:03:09]} Rfc8 {[%emt 0:00:15]} 19. Rd1 {[%emt 0:07:30]} R3c6 {[%emt 0:00:28]} 20. Bxg6 {[%emt 0:00:50]} Rb6+ {[%emt 0:00:04]} 21. Rb3 {[%emt 0:04:37]} Nxb3 {[%emt 0:00:06]} 22. Bxh7+ {[%emt 0:00:37]} Kxh7 {[%emt 0:00:18]} 23. axb3 {[%emt 0:00:06]} Rxb3+ {[%emt 0:00:29]} 24. Ka2 {[%emt 0:00:04]} Rxf3 {[%emt 0:01:23]} 25. Rd7 {[%emt 0:00:07]} Rc2+ {[%emt 0:00:44]} 26. Kb1 {[%emt 0:00:12]} Rc6 {[%emt 0:00:03]} 27. Rxb7 {[%emt 0:00:36]} Rb6+ {[%emt 0:00:07]} 0-1